bitfinex-derivatives/quotes_BTCF0:USTF0_20250127
["timestamp","ask_amount","ask_price","bid_price","bid_amount"]
[1737987318025,0.1,100400.0,100380.0,0.50407708]
[1737987318225,0.1,100400.0,100390.0,0.34250908]
[1737987318529,0.1,100400.0,100390.0,0.40800908]
[1737987318924,0.1,100400.0,100390.0,0.76880908]
[1737987319231,0.62832887,100410.0,100400.0,0.199213]
[1737987319422,0.62832887,100410.0,100400.0,0.84656716]
[1737987319624,0.62832887,100410.0,100400.0,0.70329008]
[1737987319927,0.2997069,100410.0,100400.0,0.70329008]
[1737987320121,0.1673859,100410.0,100400.0,0.70329008]
[1737987320321,9e-07,100410.0,100400.0,0.70329008]
[1737987320521,9e-07,100410.0,100400.0,0.84656716]
[1737987320733,9e-07,100410.0,100400.0,1.15056716]
[1737987321028,9e-07,100410.0,100400.0,1.15256716]
[1737987321224,9e-07,100410.0,100400.0,0.85256716]
[1737987321729,9e-07,100410.0,100400.0,0.70929008]
[1737987322124,9e-07,100410.0,100400.0,0.205213]
[1737987322125,0.5599939,100410.0,100400.0,0.205213]
[1737987322426,9e-07,100410.0,100400.0,0.70929008]
[1737987322731,9e-07,100410.0,100400.0,0.85256716]
[1737987323129,9e-07,100410.0,100400.0,1.15256716]
[1737987323324,9e-07,100410.0,100400.0,2.34856716]
[1737987323519,9e-07,100410.0,100400.0,2.65056716]
[1737987323932,9e-07,100410.0,100400.0,2.64856716]
[1737987324133,9e-07,100410.0,100400.0,2.65356716]
[1737987324331,9e-07,100410.0,100400.0,2.65156716]
[1737987324934,0.00907409,100450.0,100440.0,0.199133]
[1737987325137,0.621697,100460.0,100440.0,0.14327708]
[1737987325327,0.621697,100460.0,100450.0,0.199113]
[1737987325527,0.73191436,100460.0,100450.0,0.199113]
[1737987327127,0.621697,100460.0,100450.0,0.199113]
[1737987327328,0.630697,100460.0,100450.0,0.200113]
[1737987327638,0.88083404,100460.0,100450.0,0.001]
[1737987327830,0.68573704,100460.0,100440.0,0.00014924]
[1737987328131,0.70319008,100450.0,100440.0,0.00014924]
[1737987328437,0.559913,100450.0,100440.0,0.00014924]
[1737987328637,0.67256167,100450.0,100440.0,0.00014924]
[1737987329536,0.48044867,100450.0,100440.0,0.20028224]
[1737987330636,0.48244867,100450.0,100440.0,0.20028224]
[1737987332835,0.68156167,100450.0,100440.0,0.00114924]
[1737987333546,0.48244867,100450.0,100440.0,0.20028224]
[1737987335235,0.68156167,100450.0,100440.0,0.20028224]
[1737987335440,0.82483875,100450.0,100440.0,0.00114924]
[1737987335636,0.68156167,100450.0,100440.0,0.00114924]
[1737987336745,0.68156167,100450.0,100440.0,0.20028224]
[1737987338638,0.68156167,100450.0,100440.0,0.00114924]
[1737987339144,0.48244867,100450.0,100440.0,0.20028224]
[1737987339948,0.68156167,100450.0,100440.0,0.00114924]
[1737987340246,0.82483875,100450.0,100440.0,0.00114924]
[1737987343344,0.68156167,100450.0,100440.0,0.00114924]
[1737987343544,0.48244867,100450.0,100440.0,0.20028224]
[1737987343843,0.48244867,100450.0,100440.0,0.34355932]
[1737987344052,0.3698,100450.0,100440.0,0.34355932]
[1737987344453,0.3698,100450.0,100440.0,0.20028224]
[1737987344751,0.3698,100450.0,100440.0,0.34355932]
[1737987345650,0.3698,100450.0,100440.0,0.20028224]
[1737987346941,0.3698,100450.0,100440.0,0.20824224]
[1737987347960,0.3698,100450.0,100440.0,0.21765112]
[1737987348453,0.3698,100450.0,100440.0,0.45523596]
[1737987348961,0.3698,100450.0,100440.0,0.44582708]
[1737987349153,0.568913,100450.0,100440.0,0.44582708]
[1737987349460,0.47423168,100450.0,100440.0,0.43786708]
[1737987349758,0.47423168,100450.0,100440.0,0.58114416]
[1737987349759,0.009,100450.0,100440.0,0.58114416]
[1737987350749,0.009,100450.0,100440.0,0.43786708]
[1737987351046,0.009,100450.0,100440.0,1.67091629]
[1737987351244,0.48204924,100470.0,100460.0,0.199094]
[1737987351857,0.48204924,100470.0,100460.0,0.34237108]
[1737987351858,0.06004924,100470.0,100460.0,0.34237108]
[1737987352056,0.00014924,100470.0,100460.0,0.70317108]
[1737987352256,0.00014924,100470.0,100460.0,0.34237108]
[1737987352755,0.00014924,100470.0,100460.0,0.46547108]
[1737987353654,0.36194924,100470.0,100460.0,0.199094]
[1737987354054,0.199096,100460.0,100450.0,0.199109]
[1737987354249,0.3608,100460.0,100450.0,0.199109]
[1737987354562,0.10496931,100460.0,100450.0,0.34238608]
[1737987354855,0.00314924,100470.0,100460.0,0.199094]
[1737987355053,2.4e-07,100470.0,100460.0,2.26197108]
[1737987355248,0.1,100500.0,100490.0,0.199034]
[1737987355454,0.1,100500.0,100490.0,0.70311108]
[1737987355851,0.1,100500.0,100490.0,0.76191108]
[1737987356356,0.62124,100540.0,100500.0,0.049749]
[1737987356552,0.3608,100550.0,100540.0,0.198935]
[1737987356751,0.3608,100550.0,100540.0,0.34221208]
[1737987356951,0.3608,100550.0,100540.0,0.198935]
[1737987357149,0.62602633,100550.0,100530.0,1.69910024]
[1737987357361,0.68167825,100550.0,100530.0,1.69910024]
[1737987357563,0.3608,100540.0,100530.0,1.69910024]
[1737987357755,0.3608,100540.0,100530.0,1.84237732]
[1737987358560,0.37010628,100550.0,100530.0,2.00422632]
[1737987358761,0.37010628,100550.0,100540.0,0.198935]
[1737987359059,0.48156395,100550.0,100540.0,0.198935]
[1737987359253,0.48656395,100550.0,100540.0,0.198935]
[1737987359956,0.48156395,100550.0,100540.0,0.34221208]
[1737987360259,0.3668,100550.0,100540.0,0.199935]
[1737987360457,0.67237292,100550.0,100540.0,0.199935]
[1737987360659,0.616735,100550.0,100530.0,0.23783196]
[1737987360862,0.82871208,100540.0,100530.0,0.18494443]
[1737987361060,0.82871208,100540.0,100520.0,0.63740873]
[1737987361259,0.70303208,100530.0,100520.0,0.62557005]
[1737987361455,0.70303208,100530.0,100520.0,0.23648039]
[1737987361765,0.81765372,100530.0,100520.0,0.23648039]
[1737987362062,0.198975,100520.0,100510.0,0.2688727]
[1737987362253,0.559775,100520.0,100510.0,0.2688727]
[1737987362462,0.81761485,100520.0,100510.0,0.2688727]
[1737987363454,0.81761485,100520.0,100510.0,0.1710727]
[1737987363656,0.199034,100490.0,100480.0,0.59840576]
[1737987363854,1.06391108,100490.0,100480.0,0.59840576]
[1737987364159,0.82697921,100490.0,100480.0,0.59840576]
[1737987364364,0.82697921,100490.0,100460.0,1.6263]
[1737987364365,0.199074,100470.0,100460.0,0.00052]
[1737987364659,0.199094,100460.0,100450.0,0.00149308]
[1737987364863,0.70317108,100460.0,100450.0,0.00164232]
[1737987365161,0.80797817,100460.0,100450.0,0.00164232]
[1737987365764,0.80797817,100460.0,100450.0,0.00014924]
[1737987366968,0.80797817,100460.0,100450.0,0.00214924]
[1737987369867,0.97337817,100460.0,100450.0,0.00214924]
[1737987370073,0.80797817,100460.0,100450.0,0.00214924]
[1737987370568,0.66470109,100460.0,100450.0,0.00214924]
[1737987370778,0.66470109,100460.0,100450.0,0.20126324]
[1737987370779,0.46560709,100460.0,100450.0,0.20126324]
[1737987371268,0.60888417,100460.0,100450.0,0.00214924]
[1737987371479,0.80797817,100460.0,100450.0,0.00214924]
[1737987371875,0.90888417,100460.0,100420.0,0.0641]
[1737987372167,0.199173,100420.0,100410.0,0.0014937]
[1737987372369,0.199193,100410.0,100400.0,0.1]
[1737987372562,0.70327008,100410.0,100400.0,0.1]
[1737987372771,0.81057359,100410.0,100400.0,0.1]
[1737987373068,0.34249008,100400.0,100390.0,0.0595]
[1737987373271,0.70329008,100400.0,100390.0,0.00014924]
[1737987373458,0.70329008,100400.0,100370.0,0.26963271]
[1737987373459,0.81296542,100400.0,100370.0,0.26963271]
[1737987373658,0.7216,100380.0,100370.0,0.20873271]
[1737987373860,0.7216,100380.0,100370.0,0.00946371]
[1737987374063,0.97455242,100380.0,100370.0,0.00946371]
[1737987374259,1.17380442,100380.0,100370.0,0.00946371]
[1737987374462,1.17380442,100380.0,100370.0,0.00149371]
[1737987374872,1.21521924,100380.0,100370.0,0.00149371]
[1737987375872,0.87269016,100380.0,100370.0,0.00149371]
[1737987376071,0.87269016,100380.0,100370.0,0.20076571]
[1737987376268,0.51289016,100380.0,100370.0,0.20576571]
[1737987376459,0.87369016,100380.0,100370.0,0.00649371]
[1737987376866,0.87369016,100380.0,100370.0,0.20576571]
[1737987377260,0.87369016,100380.0,100370.0,1.71476571]
[1737987377261,0.51289016,100380.0,100370.0,1.71476571]
[1737987377466,0.00014924,100390.0,100380.0,0.199252]
[1737987377661,0.00014924,100390.0,100380.0,0.70332908]
[1737987377970,0.3608,100410.0,100400.0,0.199213]
[1737987379068,0.81388901,100410.0,100390.0,0.00014924]
[1737987379370,0.3608,100400.0,100390.0,0.19937924]
[1737987379674,0.82308536,100410.0,100390.0,0.19937924]
[1737987379675,0.36999635,100410.0,100390.0,0.50422632]
[1737987379874,0.36999635,100410.0,100400.0,0.199213]
[1737987380267,0.3628,100410.0,100400.0,0.199213]
[1737987380765,0.3638,100410.0,100400.0,0.327713]
[1737987381571,0.3628,100410.0,100400.0,0.329713]
[1737987382674,0.3703106,100420.0,100410.0,0.199193]
[1737987383076,0.82368984,100420.0,100400.0,0.1345]
[1737987383277,0.559993,100410.0,100400.0,0.33371]
[1737987383576,0.3608,100410.0,100400.0,0.33371]
[1737987383784,0.3608,100410.0,100400.0,0.33171]
[1737987384475,0.0095106,100420.0,100410.0,0.200193]
[1737987384683,0.3703106,100420.0,100410.0,0.200193]
[1737987384869,0.47634984,100420.0,100410.0,0.200193]
[1737987385374,0.67552284,100420.0,100410.0,0.001]
[1737987386380,0.67552284,100420.0,100400.0,0.329696]
[1737987386583,0.3608,100410.0,100400.0,0.329696]
[1737987386880,0.3608,100410.0,100400.0,0.327696]
[1737987387981,0.3608,100410.0,100400.0,0.328696]
[1737987388374,0.3608,100410.0,100400.0,0.47197308]
[1737987388886,0.3608,100410.0,100400.0,0.328696]
[1737987389681,0.3608,100410.0,100400.0,0.332696]
[1737987390382,0.3608,100410.0,100400.0,0.333696]
[1737987390883,0.5694876,100420.0,100410.0,0.199193]
[1737987391071,0.0095106,100420.0,100410.0,0.199193]
[1737987391277,0.11583999,100420.0,100410.0,0.199193]
[1737987391478,0.47663999,100420.0,100410.0,0.199193]
[1737987391881,0.67581299,100420.0,100410.0,0.199193]
[1737987392186,0.67581299,100420.0,100410.0,0.200193]
[1737987392387,0.81909007,100420.0,100410.0,0.001]
[1737987392781,0.81909007,100420.0,100410.0,0.002]
[1737987392981,0.67581299,100420.0,100410.0,0.201193]
[1737987393585,0.67581299,100420.0,100410.0,0.002]
[1737987393786,0.47663999,100420.0,100410.0,0.201193]
[1737987393992,0.47763999,100420.0,100410.0,0.199193]
[1737987394184,0.47963999,100420.0,100410.0,0.199193]
[1737987394484,0.67881699,100420.0,100400.0,0.327701]
[1737987394682,0.70327008,100410.0,100400.0,0.0634]
[1737987394880,0.70327008,100410.0,100390.0,0.19937524]
[1737987395076,0.3608,100400.0,100390.0,0.19937524]
[1737987395677,0.70329008,100400.0,100390.0,0.00014924]
[1737987395885,0.81436786,100400.0,100390.0,0.00014924]
[1737987396774,0.67109078,100400.0,100390.0,0.00014924]
[1737987396979,0.47187778,100400.0,100390.0,0.19938224]
[1737987397186,0.47187778,100400.0,100390.0,0.00014924]
[1737987397384,0.67109078,100400.0,100390.0,0.00014924]
[1737987397580,0.67109078,100400.0,100390.0,0.00414924]
[1737987398789,0.81436786,100400.0,100390.0,0.00514924]
[1737987399695,0.81436786,100400.0,100390.0,0.00214924]
[1737987400290,0.199252,100380.0,100370.0,0.00149371]
[1737987400484,0.920852,100380.0,100370.0,0.00149371]
[1737987400790,0.83091066,100380.0,100370.0,0.199272]
[1737987401291,1.03017366,100380.0,100360.0,0.394388]
[1737987401499,0.560072,100370.0,100360.0,0.06424924]
[1737987401902,0.66712318,100370.0,100360.0,0.00014924]
[1737987403295,0.46785118,100370.0,100360.0,0.19944124]
[1737987403799,0.46785118,100370.0,100360.0,0.20844124]
[1737987404096,0.66712318,100370.0,100360.0,0.20844124]
[1737987404498,0.46885118,100370.0,100360.0,0.21744124]
[1737987404696,0.10805118,100370.0,100360.0,0.36071832]
[1737987404894,0.66812318,100370.0,100360.0,0.01814924]
[1737987405097,0.66812318,100370.0,100360.0,0.21744124]
[1737987405897,0.46885118,100370.0,100360.0,0.21744124]
[1737987406597,0.10805118,100370.0,100360.0,0.21744124]
[1737987406796,0.001,100370.0,100360.0,0.36071832]
[1737987407386,0.3618,100370.0,100360.0,0.36071832]
[1737987407589,0.3618,100370.0,100360.0,0.21744124]
[1737987407987,0.001,100370.0,100360.0,0.36071832]
[1737987408194,0.001,100370.0,100360.0,0.72151832]
[1737987408794,0.36094924,100390.0,100360.0,0.52222632]
[1737987409007,0.36094924,100390.0,100380.0,0.199252]
[1737987409202,0.46908969,100390.0,100380.0,0.199252]
[1737987409398,0.81159977,100390.0,100380.0,0.199252]
[1737987409705,0.61236677,100390.0,100380.0,0.199252]
[1737987409892,0.61236677,100390.0,100380.0,0.560052]
[1737987409893,0.00014924,100390.0,100380.0,0.560052]
[1737987410092,0.81160377,100390.0,100370.0,0.332356]
[1737987410299,0.3608,100380.0,100370.0,0.332356]
[1737987410799,0.47149571,100380.0,100370.0,0.332356]
[1737987411000,0.11069571,100380.0,100370.0,0.332356]
[1737987411402,0.50522632,100390.0,100380.0,0.203252]
[1737987411699,0.47540072,100390.0,100380.0,0.203252]
[1737987412202,0.47540072,100390.0,100380.0,0.267452]
[1737987412399,0.11460072,100390.0,100380.0,0.77152908]
[1737987412598,0.625063,100430.0,100400.0,0.049802]
[1737987412792,0.3608,100430.0,100420.0,0.199173]
[1737987412993,0.4716694,100430.0,100420.0,0.199173]
[1737987413195,0.6708224,100430.0,100420.0,0.199173]
[1737987413396,0.91494648,100430.0,100380.0,0.004]
[1737987413596,0.3608,100390.0,100380.0,0.004]
[1737987413897,0.199252,100380.0,100370.0,0.00614924]
[1737987414197,0.76842908,100380.0,100370.0,0.00614924]
[1737987414397,0.87694601,100380.0,100370.0,0.00014924]
[1737987414795,0.67769401,100380.0,100350.0,0.0655]
[1737987414997,0.920892,100360.0,100350.0,0.0655]
[1737987415404,1.02643062,100360.0,100350.0,0.0655]
[1737987415599,0.66563062,100360.0,100350.0,0.0655]
[1737987416098,0.199312,100350.0,100340.0,0.17754171]
[1737987416298,0.70338908,100350.0,100340.0,0.17754171]
[1737987416600,0.81900915,100350.0,100340.0,0.17754171]
[1737987416904,0.81900915,100350.0,100340.0,0.00014924]
[1737987417299,0.67573207,100350.0,100340.0,0.00014924]
[1737987417506,0.81900915,100350.0,100340.0,0.00014924]
[1737987418003,0.67573207,100350.0,100340.0,0.00014924]
[1737987418405,0.82000915,100350.0,100340.0,0.00914924]
[1737987418608,0.82100915,100350.0,100340.0,0.01514924]
[1737987419509,0.47842007,100350.0,100340.0,0.01514924]
[1737987419704,0.47842007,100350.0,100340.0,0.21448124]
[1737987419904,0.3628,100350.0,100340.0,0.21448124]
[1737987420107,0.47948088,100350.0,100340.0,0.01514924]
[1737987420805,0.47948088,100350.0,100340.0,0.21448124]
[1737987421007,0.36094924,100370.0,100360.0,0.199292]
[1737987421305,0.47243707,100370.0,100360.0,0.199292]
[1737987421809,0.48210975,100370.0,100360.0,0.199292]
[1737987422507,0.48210975,100370.0,100360.0,0.200292]
[1737987422713,0.48210975,100370.0,100360.0,0.201292]
[1737987423010,0.62538683,100370.0,100360.0,0.201292]
[1737987423407,0.48210975,100370.0,100360.0,0.201292]
[1737987423711,0.3608,100390.0,100380.0,0.199252]
[1737987424107,0.60944344,100390.0,100360.0,0.3628]
[1737987424309,0.60944344,100390.0,100370.0,0.199265]
[1737987424504,0.61871346,100390.0,100370.0,0.199265]
[1737987424914,0.47758562,100390.0,100370.0,0.19941424]
[1737987425112,0.47758562,100390.0,100370.0,0.00014924]
[1737987425313,0.47758562,100390.0,100380.0,0.199252]
[1737987425509,0.6208627,100390.0,100370.0,0.00014924]
[1737987425716,0.8260977,100390.0,100370.0,0.19941624]
[1737987425918,0.3608,100380.0,100370.0,0.00014924]
[1737987426221,0.70332908,100380.0,100370.0,0.00014924]
[1737987426516,0.34255808,100370.0,100350.0,0.199305]
[1737987426714,0.7216,100360.0,100350.0,0.199305]
[1737987427022,0.83691336,100360.0,100350.0,0.199305]
[1737987427509,0.20657708,100380.0,100350.0,0.199305]
[1737987427510,0.00014924,100370.0,100360.0,0.199292]
[1737987428910,0.29580336,100370.0,100360.0,0.200292]
[1737987429110,0.29580336,100370.0,100360.0,0.70536908]
[1737987429310,0.00927002,100390.0,100360.0,0.50607708]
[1737987429513,1.0625917,100400.0,100380.0,0.199252]
[1737987429711,1.0625917,100400.0,100370.0,0.049817]
[1737987429712,0.81856791,100390.0,100370.0,0.199265]
[1737987429911,0.70332908,100380.0,100360.0,0.201286]
[1737987430114,0.3608,100370.0,100360.0,0.204286]
[1737987430514,0.46559793,100370.0,100360.0,0.204286]
[1737987431008,0.3608,100370.0,100360.0,0.204286]
[1737987431205,0.3608,100370.0,100360.0,0.205286]
[1737987432326,0.3608,100370.0,100360.0,0.201286]
[1737987433026,0.00014924,100380.0,100370.0,0.199272]
[1737987433619,0.00014924,100380.0,100370.0,0.70334908]
[1737987433815,0.00014924,100380.0,100370.0,0.34254908]
[1737987434025,0.00014924,100380.0,100370.0,0.70334908]
[1737987435225,0.62835424,100400.0,100390.0,0.199232]
[1737987435527,0.7420313,100400.0,100390.0,0.199232]
[1737987436319,0.3812313,100400.0,100390.0,0.199232]
[1737987436520,0.27555424,100400.0,100390.0,0.70330908]
[1737987436725,0.27555424,100400.0,100390.0,0.199232]
[1737987437025,0.008,100400.0,100390.0,0.199232]
[1737987437723,0.008,100400.0,100390.0,0.70330908]
[1737987438120,0.00014924,100410.0,100390.0,0.50407708]
[1737987438324,0.00014924,100410.0,100400.0,0.70329008]
[1737987438622,0.00014924,100410.0,100400.0,0.199213]
[1737987439823,0.00014924,100410.0,100400.0,0.207173]
[1737987440128,0.00214924,100410.0,100400.0,0.207173]
[1737987441216,0.11045095,100410.0,100400.0,0.207173]
[1737987441431,0.11045095,100410.0,100400.0,0.199213]
[1737987441922,0.47125095,100410.0,100400.0,0.199213]
[1737987443028,0.00214924,100410.0,100400.0,0.34249008]
[1737987443630,0.00214924,100410.0,100400.0,0.70329008]
[1737987444021,0.39067155,100430.0,100400.0,0.50407708]
[1737987444223,0.02987155,100430.0,100420.0,0.70325008]
[1737987445222,0.03287155,100430.0,100420.0,0.199173]
[1737987445617,0.03287155,100430.0,100420.0,0.34245008]
[1737987445819,0.03287155,100430.0,100420.0,0.199173]
[1737987446220,0.03287155,100430.0,100420.0,0.70325008]
[1737987446635,0.00014924,100440.0,100430.0,0.199153]
[1737987446938,0.00014924,100440.0,100430.0,0.559953]
[1737987447429,0.00014924,100440.0,100430.0,0.625753]
[1737987447936,0.00014924,100440.0,100430.0,0.76903008]
[1737987448232,0.00214924,100440.0,100430.0,0.76903008]
[1737987450530,0.00214924,100440.0,100430.0,0.77843131]
[1737987452135,0.00214924,100440.0,100430.0,0.63515423]
[1737987452528,0.00214924,100440.0,100430.0,0.77843131]
[1737987454731,2.4e-07,100440.0,100430.0,0.77843131]
[1737987454931,0.62980433,100470.0,100460.0,0.199094]
[1737987455131,0.70316058,100470.0,100460.0,0.199094]
[1737987455338,0.80819092,100470.0,100460.0,0.199094]
[1737987456535,0.199094,100460.0,100450.0,0.19925924]
[1737987456833,0.3608,100460.0,100450.0,0.19925924]
[1737987457037,0.46620154,100460.0,100450.0,0.19925924]
[1737987458040,0.46620154,100460.0,100450.0,0.20125924]
[1737987458241,0.10540154,100460.0,100450.0,0.20125924]
[1737987458542,0.14328658,100470.0,100460.0,0.199094]
[1737987458933,0.42269948,100480.0,100460.0,0.50407708]
[1737987458934,4.8e-07,100480.0,100460.0,0.50407708]
[1737987459136,4.8e-07,100480.0,100470.0,0.70315108]
[1737987459339,4.8e-07,100480.0,100470.0,0.34235108]
[1737987459544,0.36080048,100480.0,100470.0,0.199074]
[1737987459938,4.8e-07,100480.0,100470.0,0.34235108]
[1737987461339,4.8e-07,100480.0,100470.0,0.35135108]
[1737987461740,4.8e-07,100480.0,100470.0,0.35931108]
[1737987461942,4.8e-07,100480.0,100470.0,0.36731108]
[1737987462247,4.8e-07,100480.0,100470.0,0.72811108]
[1737987462934,4.8e-07,100480.0,100470.0,0.72711108]
[1737987463439,0.36080048,100480.0,100470.0,0.223034]
[1737987463634,4.8e-07,100480.0,100470.0,0.215074]
[1737987464041,0.36080048,100480.0,100470.0,0.201074]
[1737987464243,0.672072,100480.0,100470.0,0.210074]
[1737987464545,0.87944908,100480.0,100470.0,0.210074]
[1737987465446,0.88044908,100480.0,100470.0,0.217074]
[1737987465647,0.737172,100480.0,100470.0,0.217074]
[1737987466844,0.736172,100480.0,100470.0,0.214074]
[1737987467048,0.537118,100480.0,100470.0,0.214074]
[1737987467441,0.76723156,100480.0,100470.0,0.214074]
[1737987467641,0.43431615,100480.0,100470.0,0.214074]
[1737987467844,0.53839331,100480.0,100470.0,0.214074]
[1737987468246,0.73744731,100480.0,100470.0,0.214074]
[1737987468549,0.53839331,100480.0,100470.0,0.214074]
[1737987471251,0.17759331,100480.0,100470.0,0.214074]
[1737987471638,0.11349331,100480.0,100470.0,0.214074]
[1737987471843,4.8e-07,100480.0,100470.0,0.214074]
[1737987472043,4.8e-07,100480.0,100470.0,0.78575108]
[1737987472346,4.8e-07,100480.0,100470.0,0.85405108]
[1737987472944,4.8e-07,100480.0,100470.0,0.349974]
[1737987473250,0.36080048,100480.0,100470.0,0.349974]
[1737987473947,4.8e-07,100480.0,100470.0,0.349974]
[1737987474748,0.36080048,100480.0,100470.0,0.214074]
[1737987475051,0.61071049,100480.0,100470.0,0.214074]
[1737987475647,0.46743341,100480.0,100470.0,0.214074]
[1737987476753,0.10663341,100480.0,100470.0,0.214074]
[1737987477049,0.46743341,100480.0,100470.0,0.214074]
[1737987478055,0.47708516,100480.0,100470.0,0.214074]
[1737987478452,0.11628516,100480.0,100470.0,0.214074]
[1737987478748,0.47708516,100480.0,100470.0,0.214074]
[1737987478953,0.11628516,100480.0,100470.0,0.214074]
[1737987479147,0.10663341,100480.0,100470.0,0.214074]
[1737987480057,4.8e-07,100480.0,100470.0,0.214074]
[1737987480358,0.10913483,100480.0,100470.0,0.214074]
[1737987480554,0.25241191,100480.0,100470.0,0.214074]
[1737987480755,0.61321191,100480.0,100470.0,0.214074]
[1737987481051,0.61321191,100480.0,100470.0,0.015]
[1737987481358,0.94766591,100480.0,100470.0,0.015]
[1737987481657,0.94766591,100480.0,100470.0,0.214074]
[1737987481950,0.60533483,100480.0,100470.0,0.214074]
[1737987482158,0.199093,100470.0,100450.0,0.19926124]
[1737987482348,0.86487708,100460.0,100450.0,0.00014924]
[1737987482548,1.06397108,100460.0,100450.0,0.00014924]
[1737987482758,0.199153,100430.0,100420.0,0.18684595]
[1737987483057,0.70323008,100430.0,100420.0,0.18535247]
[1737987483243,0.80908655,100430.0,100420.0,0.18535247]
[1737987483644,0.199173,100420.0,100410.0,0.23782599]
[1737987483847,0.70325008,100420.0,100410.0,0.23797523]
[1737987484060,0.8101466,100420.0,100410.0,0.23797523]
[1737987484259,0.8101466,100420.0,100410.0,0.00014924]
[1737987486154,0.8101466,100420.0,100410.0,0.00914924]
[1737987486356,0.8111466,100420.0,100410.0,0.00914924]
[1737987486750,0.8760466,100420.0,100410.0,0.00914924]
[1737987487159,0.88581996,100420.0,100410.0,0.00914924]
[1737987487745,0.88581996,100420.0,100410.0,0.01414924]
[1737987488149,0.199194,100410.0,100390.0,0.199224]
[1737987488451,0.50407708,100400.0,100390.0,0.199224]
[1737987488858,0.46974235,100400.0,100390.0,0.199224]
[1737987489160,0.81223643,100400.0,100380.0,0.26694]
[1737987489359,0.3608,100390.0,100380.0,0.26708924]
[1737987489752,0.47144823,100390.0,100380.0,0.26708924]
[1737987490257,0.11064823,100390.0,100380.0,0.26708924]
[1737987490659,0.3618,100400.0,100390.0,0.199233]
[1737987490862,0.3608,100400.0,100390.0,0.269033]
[1737987491162,0.47259963,100400.0,100390.0,0.269033]
[1737987492171,0.81508971,100400.0,100390.0,0.0698]
[1737987492767,0.47359963,100400.0,100390.0,0.271033]
[1737987493164,0.47359963,100400.0,100390.0,0.276033]
[1737987493858,0.47359963,100400.0,100390.0,0.343033]
[1737987494759,0.12251112,100400.0,100390.0,0.343033]
[1737987495252,0.48331112,100400.0,100390.0,0.343033]
[1737987495759,0.12251112,100400.0,100390.0,0.343033]
[1737987496353,0.48331112,100400.0,100390.0,0.343033]
[1737987497860,0.12251112,100400.0,100390.0,0.343033]
[1737987498869,0.11279963,100400.0,100390.0,0.703833]
[1737987499166,0.47359963,100400.0,100390.0,0.343033]
[1737987499464,0.11279963,100400.0,100390.0,0.343033]
[1737987500655,0.11279963,100400.0,100390.0,0.703833]
[1737987502465,0.001,100400.0,100390.0,0.703833]
[1737987506468,0.001,100400.0,100390.0,0.71154243]
[1737987507474,0.09634467,100400.0,100390.0,0.343033]
[1737987507675,0.76214247,100400.0,100390.0,0.343033]
[1737987508165,0.56292947,100400.0,100390.0,0.343033]
[1737987509074,0.20212947,100400.0,100390.0,0.703833]
[1737987509770,0.1067848,100400.0,100390.0,0.703833]
[1737987510071,0.001,100400.0,100390.0,0.79917767]
[1737987510282,0.00014924,100410.0,100400.0,0.199213]
[1737987510467,0.00014924,100410.0,100400.0,0.65535767]
[1737987510667,0.07556681,100430.0,100420.0,0.199173]
[1737987510967,0.28617513,100430.0,100420.0,0.14434676]
[1737987511162,0.84612813,100430.0,100410.0,0.049797]
[1737987511466,0.45614467,100420.0,100410.0,0.24899]
[1737987511666,0.28617513,100430.0,100420.0,0.199173]
[1737987511872,0.17894946,100430.0,100420.0,0.199173]
[1737987512080,0.85186271,100430.0,100420.0,0.199173]
[1737987512269,0.85186271,100430.0,100400.0,0.05394724]
[1737987512468,0.45614467,100410.0,100400.0,0.1846169]
[1737987512771,0.65533767,100410.0,100400.0,0.1846169]
[1737987512973,0.56601727,100410.0,100400.0,0.1846169]
[1737987513373,0.76521027,100410.0,100400.0,0.1846169]
[1737987513572,0.56601727,100410.0,100400.0,0.1846169]
[1737987513874,0.56601727,100410.0,100390.0,0.56554924]
[1737987514079,0.65535767,100400.0,100390.0,0.33697924]
[1737987514269,0.65535767,100400.0,100390.0,0.00014924]
[1737987514577,0.199233,100390.0,100380.0,0.199248]
[1737987514770,0.65537767,100390.0,100380.0,0.199248]
[1737987515077,0.76979,100390.0,100380.0,0.199248]
[1737987515376,0.570557,100390.0,100380.0,0.199248]
[1737987515778,0.11441233,100390.0,100380.0,0.199248]
[1737987516276,0.43751605,100400.0,100380.0,0.09534467]
[1737987516574,0.54399451,100400.0,100390.0,0.199233]
[1737987516781,0.54399451,100400.0,100390.0,0.263833]
[1737987516969,0.68703609,100400.0,100390.0,0.263833]
[1737987517165,0.68703609,100400.0,100370.0,0.46057824]
[1737987517372,0.3608,100390.0,100380.0,0.199237]
[1737987517771,0.46675213,100390.0,100380.0,0.199237]
[1737987517973,0.46675213,100390.0,100380.0,0.203237]
[1737987518169,0.66598513,100390.0,100380.0,0.203237]
[1737987518371,0.66698513,100390.0,100380.0,0.203237]
[1737987518669,0.81002671,100390.0,100380.0,0.004]
[1737987518869,0.81002671,100390.0,100380.0,0.203252]
[1737987518870,0.94142671,100390.0,100380.0,0.203252]
[1737987519267,0.53255213,100390.0,100380.0,0.203252]
[1737987519471,0.10695213,100390.0,100380.0,0.70709358]
[1737987519774,0.07571605,100400.0,100390.0,0.199233]
[1737987519775,0.00014924,100400.0,100390.0,0.199233]
[1737987519970,0.07556681,100410.0,100400.0,0.199213]
[1737987520175,0.07556681,100410.0,100400.0,0.70305458]
[1737987520574,0.07556681,100410.0,100400.0,0.76865458]
[1737987521376,0.07556681,100410.0,100400.0,0.76965458]
[1737987522073,0.07556681,100410.0,100400.0,0.77265458]
[1737987522379,0.00014924,100420.0,100400.0,1.01648316]
[1737987522575,0.53230695,100440.0,100410.0,0.62453858]
[1737987522882,0.53230695,100440.0,100430.0,0.70299458]
[1737987523180,0.56422966,100440.0,100430.0,0.70299458]
[1737987523377,0.56422966,100440.0,100430.0,0.559953]
[1737987523682,0.32521953,100450.0,100430.0,0.50384158]
[1737987523883,0.00014924,100450.0,100430.0,0.55362858]
[1737987524081,0.1154058,100450.0,100440.0,0.70297458]
[1737987524380,0.1154058,100450.0,100440.0,0.77387458]
[1737987524577,0.00014924,100450.0,100440.0,0.77387458]
[1737987525286,0.00714924,100450.0,100440.0,0.77487458]
[1737987525580,0.01014924,100450.0,100440.0,0.77487458]
[1737987525771,0.01014924,100450.0,100440.0,0.90947458]
[1737987525967,0.01014924,100450.0,100440.0,0.90847458]
[1737987525968,0.24541658,100450.0,100440.0,0.90847458]
[1737987526172,0.24541658,100450.0,100440.0,0.765433]
[1737987526375,0.35220902,100450.0,100440.0,0.765433]
[1737987526577,0.35220902,100450.0,100440.0,0.266033]